bitfinex/quotes_SOLUSD_20260226
["timestamp","ask_amount","ask_price","bid_price","bid_amount"]
[1772085681241,0.78992232,87.655,87.63,9.65127773]
[1772085681737,11.40696502,87.666,87.63,9.65127773]
[1772085681923,11.40696502,87.666,87.64,9.65127773]
[1772085682240,0.78992232,87.678,87.64,9.65127773]
[1772085682537,0.78992232,87.678,87.641,0.79682871]
[1772085682740,0.78992232,87.676,87.641,0.79682871]
[1772085682918,0.78992232,87.676,87.651,0.79682871]
[1772085683119,0.78992232,87.683,87.651,0.79682871]
[1772085683327,11.40484934,87.682,87.651,0.79682871]
[1772085683925,0.78992232,87.681,87.651,0.79682871]
[1772085687642,9.65127773,87.68,87.651,0.8207216]
[1772085687830,0.80073211,87.685,87.651,0.8207216]
[1772085688230,0.80073211,87.679,87.631,0.8207216]
[1772085688417,9.65127773,87.66,87.631,0.8207216]
[1772085688845,0.80073211,87.669,87.631,0.8207216]
[1772085689544,11.40639251,87.671,87.641,0.8207216]
[1772085690440,0.80073211,87.676,87.641,0.8207216]
[1772085690627,12.20649201,87.675,87.641,0.8207216]
[1772085691346,9.65127773,87.67,87.641,0.8207216]
[1772085692044,11.40654051,87.669,87.641,0.8207216]
[1772085692821,9.65127773,87.68,87.643,0.8207216]
[1772085693026,0.80073211,87.688,87.651,0.8207216]
[1772085693748,11.40332074,87.694,87.671,0.80326256]
[1772085694246,0.77165045,87.693,87.671,0.80326256]
[1772085695450,11.40354878,87.692,87.671,0.80326256]
[1772085696150,11.40232226,87.702,87.671,0.80326256]
[1772085696354,12.17313373,87.708,87.681,0.80326256]
[1772085696550,104.1,87.759,87.681,0.80326256]
[1772085696551,0.77165045,87.722,87.681,0.80326256]
[1772085696754,0.77165045,87.728,87.691,0.80326256]
[1772085697742,0.77165045,87.726,87.693,0.80326256]
[1772085699958,0.77165045,87.747,87.711,0.80326256]
[1772085700963,0.1,87.76,87.731,0.80326256]
[1772085700964,11.39484269,87.759,87.731,0.80326256]
[1772085701258,11.39484269,87.759,87.711,0.80326256]
[1772085701259,0.77165045,87.739,87.711,0.80326256]
[1772085701438,3.59807362,87.73,87.711,0.80326256]
[1772085702757,3.59807362,87.73,87.69,3.59807362]
[1772085702758,11.39873929,87.729,87.704,0.80326256]
[1772085702962,11.39873929,87.729,87.691,0.80326256]
[1772085702963,0.77165045,87.728,87.691,0.80326256]
[1772085703258,3.59807362,87.72,87.692,0.80326256]
[1772085703459,0.77165045,87.728,87.692,0.80326256]
[1772085703934,0.77165045,87.722,87.692,0.80326256]
[1772085704139,0.77165045,87.728,87.692,0.80326256]
[1772085704957,0.77165045,87.699,87.649,0.80326256]
[1772085705136,3.59807362,87.67,87.651,0.80326256]
[1772085705435,3.59807362,87.67,87.63,3.59807362]
[1772085705436,0.77165045,87.669,87.636,0.80326256]
[1772085705640,0.77165045,87.677,87.641,0.80326256]
[1772085707058,3.59807362,87.67,87.641,0.80326256]
[1772085707354,9.65203857,87.67,87.641,0.80326256]
[1772085708748,11.40523956,87.679,87.643,0.80326256]
[1772085708955,11.40523956,87.679,87.645,0.80326256]
[1772085709545,9.65203857,87.68,87.645,0.80326256]
[1772085710357,0.77165045,87.679,87.645,0.80326256]
[1772085711063,9.65203857,87.67,87.645,0.80326256]
[1772085711241,0.77165045,87.669,87.645,0.80326256]
[1772085711948,11.40536964,87.678,87.645,0.80326256]
[1772085711949,0.77165045,87.676,87.645,0.80326256]
[1772085712362,0.77165045,87.676,87.647,0.80326256]
[1772085713456,11.4057599,87.675,87.647,0.80326256]
[1772085713960,9.65203857,87.68,87.649,0.80326256]
[1772085714172,10.42368902,87.69,87.651,0.80326256]
[1772085714462,0.77165045,87.689,87.651,0.80326256]
[1772085718064,11.40343438,87.693,87.651,0.80326256]
[1772085718065,9.65203857,87.68,87.651,0.80326256]
[1772085718443,0.82203572,87.679,87.651,0.80326256]
[1772085720870,0.82203572,87.686,87.653,0.82765024]
[1772085721167,12.22640483,87.686,87.653,0.82765024]
[1772085721463,0.82203572,87.694,87.661,0.82765024]
[1772085721764,0.82203572,87.689,87.651,0.82765024]
[1772085721950,0.82203572,87.689,87.65,9.65203857]
[1772085721951,0.82203572,87.669,87.644,0.82765024]
[1772085723164,0.82203572,87.668,87.644,0.82765024]
[1772085723867,0.82203572,87.686,87.651,0.82765024]
[1772085724490,12.22655432,87.685,87.651,0.82765024]
[1772085724662,10.47407429,87.7,87.661,0.82765024]
[1772085724859,0.82203572,87.7,87.671,0.82765024]
[1772085725364,104.1,87.726,87.681,0.82765024]
[1772085725365,0.82203572,87.718,87.681,0.82765024]
[1772085725677,9.65203857,87.72,87.681,0.82765024]
[1772085725872,0.82203572,87.719,87.681,0.82765024]
[1772085726990,51.4,87.737,87.701,0.82765024]
[1772085726991,11.39856619,87.731,87.701,0.82765024]
[1772085727567,3.59865391,87.73,87.701,0.82765024]
[1772085727880,11.39856619,87.731,87.701,0.82765024]
[1772085729199,0.82203572,87.735,87.701,11.40234047]
[1772085729488,11.39744013,87.739,87.704,0.82765024]
[1772085730192,0.82203572,87.738,87.704,0.82765024]
[1772085730385,11.39744013,87.739,87.704,0.82765024]
[1772085732591,3.59865391,87.73,87.704,0.82765024]
[1772085732790,0.82203572,87.729,87.704,0.82765024]
[1772085734489,12.2182827,87.749,87.711,0.82765024]
[1772085734680,12.2182827,87.749,87.713,0.82765024]
[1772085735191,11.39624698,87.749,87.713,0.82765024]
[1772085735388,0.82203572,87.739,87.706,0.82765024]
[1772085735588,3.59865391,87.73,87.706,0.82765024]
[1772085735780,4.42068963,87.73,87.706,0.82765024]
[1772085735977,0.82203572,87.729,87.696,0.82765024]
[1772085737187,0.82203572,87.729,87.682,28.51198376]
[1772085737188,0.82203572,87.719,87.688,0.82765024]
[1772085737389,0.82203572,87.719,87.681,0.82765024]
[1772085737595,0.82203572,87.726,87.691,0.82765024]
[1772085737793,3.59865391,87.72,87.691,0.82765024]
[1772085737973,0.82203572,87.719,87.691,0.82765024]
[1772085739491,3.59865391,87.71,87.673,0.82765024]
[1772085739699,3.59865391,87.71,87.659,3.69383402]
[1772085739700,0.82203572,87.689,87.651,0.82765024]
[1772085739891,39.90059052,87.718,87.651,0.82765024]
[1772085739892,0.82203572,87.679,87.651,0.82765024]
[1772085740395,0.82203572,87.686,87.652,0.82765024]
[1772085741474,12.22642276,87.686,87.654,0.82765024]
[1772085742172,0.82203572,87.685,87.654,0.82765024]
[1772085742376,9.64894637,87.68,87.654,0.82765024]
[1772085742577,11.40438704,87.686,87.654,0.82765024]
[1772085743478,12.22509595,87.696,87.661,0.82765024]
[1772085743688,12.22509595,87.696,87.663,0.82765024]
[1772085744392,11.40306023,87.696,87.663,0.82765024]
[1772085744584,0.82203572,87.695,87.663,0.82765024]
[1772085745301,0.82203572,87.695,87.629,3.69383402]
[1772085745302,12.22398446,87.705,87.671,0.82765024]
[1772085746393,11.40194874,87.705,87.681,0.869233]
[1772085746581,11.40094855,87.712,87.681,0.869233]
[1772085746782,0.8076708,87.709,87.681,0.869233]
[1772085747499,11.4014685,87.708,87.681,0.869233]
[1772085747684,12.2091393,87.708,87.681,0.869233]
[1772085748005,0.8076708,87.707,87.681,0.869233]
[1772085749301,9.64894637,87.7,87.681,0.869233]
[1772085750102,0.8076708,87.698,87.671,0.869233]
[1772085750697,0.8076708,87.698,87.66,9.64894637]
[1772085750698,0.8076708,87.698,87.664,0.869233]
[1772085750883,0.8076708,87.689,87.664,0.869233]
[1772085751702,0.8076708,87.689,87.655,0.869233]
[1772085752080,0.8076708,87.687,87.655,0.869233]
[1772085752706,0.8076708,87.687,87.602,5.36086188]
[1772085752707,0.8076708,87.697,87.661,0.869233]
[1772085752882,11.40302864,87.696,87.661,0.869233]
[1772085756291,0.82762647,87.695,87.661,0.869233]
[1772085756610,0.82762647,87.689,87.661,0.869233]
[1772085757097,9.64894637,87.69,87.661,0.869233]
[1772085757303,0.82762647,87.695,87.661,0.869233]
[1772085758197,0.82762647,87.693,87.661,0.869233]
[1772085759107,0.82762647,87.693,87.662,0.86073983]
[1772085759806,11.4026911,87.699,87.662,0.86073983]
[1772085760508,0.82762647,87.698,87.664,0.86073983]
[1772085762418,11.40289861,87.697,87.666,0.86073983]
[1772085763508,12.23052508,87.697,87.666,0.86073983]
[1772085763711,0.82762647,87.696,87.666,0.86073983]
[1772085766819,11.40289861,87.697,87.668,0.86073983]
[1772085766996,11.4017285,87.706,87.671,0.86073983]
[1772085767200,0.82762647,87.705,87.671,0.86073983]
[1772085767401,0.82762647,87.699,87.671,0.86073983]
[1772085769124,0.82762647,87.744,87.691,0.86073983]
[1772085769309,0.82762647,87.729,87.691,0.86073983]
[1772085769513,0.82762647,87.709,87.681,0.86073983]
[1772085769712,0.82762647,87.709,87.668,0.86073983]
[1772085770525,3.60133922,87.69,87.668,0.86073983]
[1772085770711,0.82762647,87.692,87.668,0.86073983]
[1772085771422,11.40367882,87.691,87.668,0.86073983]
[1772085772114,3.60133922,87.69,87.668,0.86073983]
[1772085772310,0.82762647,87.689,87.658,0.86073983]
[1772085773622,11.40312711,87.696,87.661,0.86073983]
[1772085773826,0.82762647,87.695,87.661,0.86073983]
[1772085776628,0.82914195,87.689,87.661,0.86073983]
[1772085778233,0.82914195,87.699,87.671,0.89362257]
[1772085778409,3.60133922,87.69,87.661,0.89362257]
[1772085778609,0.82914195,87.687,87.661,0.89362257]
[1772085779434,0.82914195,87.679,87.651,0.89362257]
[1772085780924,11.40536964,87.678,87.651,0.89362257]
[1772085781134,0.82914195,87.677,87.651,0.89362257]
[1772085781329,0.82914195,87.677,87.641,0.89362257]
[1772085781530,0.82914195,87.659,87.621,0.89362257]
[1772085781712,4.43048117,87.65,87.621,0.89362257]
[1772085781918,0.82914195,87.65,87.621,0.89362257]
[1772085782637,0.82914195,87.65,87.622,0.89362257]
[1772085785121,0.82914195,87.665,87.631,0.89362257]
[1772085786041,11.40628029,87.671,87.641,0.89362257]
[1772085787452,0.82914195,87.699,87.661,0.89362257]
[1772085787737,3.60133922,87.7,87.661,0.89362257]
[1772085787738,11.40276859,87.698,87.661,0.89362257]
[1772085787939,12.23191054,87.698,87.661,0.89362257]
[1772085788252,0.82914195,87.697,87.661,0.89362257]
[1772085789242,0.82914195,87.689,87.653,0.89362257]
[1772085789542,12.23321092,87.688,87.653,0.89362257]
[1772085789917,0.82914195,87.687,87.653,0.89362257]
[1772085790329,0.82914195,87.679,87.643,0.89362257]
[1772085790923,0.82914195,87.679,87.619,3.69383402]
[1772085790924,11.40406897,87.688,87.651,0.89362257]
[1772085791129,0.82914195,87.687,87.651,0.89362257]
[1772085791827,3.60133922,87.69,87.651,0.89362257]
[1772085791828,12.23347103,87.686,87.652,0.89362257]
[1772085792026,0.82914195,87.685,87.652,0.89362257]
[1772085792557,0.82914195,87.685,87.651,11.40875677]
[1772085792558,11.40378701,87.691,87.661,0.89362257]
[1772085792729,0.82914195,87.69,87.661,0.89362257]
[1772085793044,4.43048117,87.69,87.661,0.89362257]
[1772085793541,4.43048117,87.69,87.651,11.40875677]
[1772085793542,11.4021844,87.703,87.671,0.89362257]
[1772085793741,12.23132635,87.703,87.673,0.89362257]
[1772085795124,11.4021844,87.703,87.673,0.89362257]
[1772085795945,0.82914195,87.702,87.673,0.89362257]
[1772085798022,0.82914195,87.699,87.666,0.89362257]
[1772085800647,0.82914195,87.697,87.666,0.89362257]
[1772085802155,11.40302864,87.696,87.638,3.69383402]
[1772085802337,0.82914195,87.679,87.651,0.89362257]
[1772085802661,0.82914195,87.689,87.651,0.89362257]
[1772085804851,0.82914195,87.669,87.634,0.89362257]
[1772085805038,39.91424139,87.688,87.634,0.89362257]
[1772085805039,0.82914195,87.659,87.634,0.89362257]
[1772085805239,3.60133922,87.65,87.621,0.89362257]
[1772085807067,12.26725797,87.651,87.621,0.89362257]
[1772085807251,12.26725797,87.651,87.61,3.60133922]
[1772085807252,0.85837502,87.649,87.61,3.60133922]
[1772085807458,0.85837502,87.649,87.611,0.88892619]
[1772085807638,0.85837502,87.649,87.612,0.88892619]
[1772085808134,0.85837502,87.639,87.605,0.88892619]
[1772085808340,39.93109034,87.651,87.6,3.60133922]
[1772085808341,11.40888295,87.651,87.621,0.88892619]
[1772085808546,11.40816509,87.657,87.631,0.88892619]
[1772085809037,12.26654011,87.657,87.631,0.88892619]
[1772085809244,0.85837502,87.656,87.631,0.88892619]
[1772085810761,45.61254666,87.696,87.633,0.88892619]
[1772085810762,12.26522362,87.667,87.633,0.88892619]
[1772085810965,0.85837502,87.666,87.633,0.88892619]
[1772085811668,0.85837502,87.664,87.633,0.88892619]
[1772085814064,11.40732121,87.663,87.633,0.88892619]
[1772085814246,11.40732121,87.663,87.635,0.86678561]
[1772085814843,104.1,87.687,87.641,0.86678561]
[1772085814844,11.40665655,87.669,87.641,0.86678561]
[1772085815054,0.81744257,87.668,87.641,0.86678561]
[1772085816367,28.51143072,87.685,87.643,0.86678561]
[1772085816368,0.81744257,87.675,87.643,0.86678561]
[1772085817766,0.81744257,87.682,87.65,3.60133922]
[1772085817955,0.81744257,87.682,87.651,0.86678561]
[1772085818466,11.40497941,87.681,87.651,0.86678561]
[1772085819065,3.60133922,87.68,87.651,0.86678561]
[1772085819263,11.40437868,87.686,87.653,0.86678561]
[1772085819460,0.81744257,87.685,87.653,0.86678561]
[1772085822455,11.4045892,87.684,87.653,0.86678561]
[1772085822656,0.81744257,87.683,87.653,0.86678561]
[1772085823860,0.81744257,87.669,87.641,0.86678561]
[1772085824479,0.81744257,87.669,87.608,73.89880583]
[1772085824480,0.81744257,87.659,87.621,0.86678561]
[1772085824784,0.81744257,87.657,87.621,0.86678561]
[1772085824968,0.81744257,87.657,87.622,0.86678561]
[1772085826378,0.81744257,87.649,87.622,0.86678561]
[1772085826599,0.81744257,87.639,87.615,0.86678561]
[1772085826886,11.41057532,87.638,87.615,0.86678561]
[1772085827755,11.41000404,87.643,87.615,0.86678561]
[1772085828573,0.81744257,87.642,87.615,0.86678561]
[1772085828776,11.41000404,87.643,87.615,0.86678561]
[1772085829080,0.81744257,87.642,87.615,0.86678561]
[1772085829479,3.60235037,87.64,87.615,0.86678561]
[1772085830182,11.41044512,87.639,87.615,0.86678561]
[1772085830359,12.22788769,87.639,87.615,0.86678561]
[1772085830976,0.81744257,87.638,87.615,0.86678561]
[1772085832067,11.41070552,87.637,87.615,0.86678561]
[1772085832463,0.81744257,87.636,87.615,0.86678561]
[1772085833080,0.81744257,87.641,87.615,0.86678561]
[1772085833372,11.40950921,87.647,87.617,0.86678561]
[1772085833684,12.22567475,87.656,87.621,0.86678561]
[1772085834271,12.22567475,87.656,87.622,11.41265892]
[1772085834576,12.22567475,87.656,87.623,0.86678561]
[1772085834963,104.1,87.657,87.64,3.60235037]
[1772085835164,11.40716073,87.665,87.639,0.86678561]
[1772085835365,0.81744257,87.664,87.639,0.86678561]
[1772085835982,11.40716073,87.665,87.639,0.86678561]
[1772085836279,0.8816769,87.659,87.621,0.83695234]
[1772085836876,0.8816769,87.649,87.621,0.83695234]
[1772085838173,0.8816769,87.656,87.621,0.83695234]
[1772085838377,0.8816769,87.656,87.623,0.83695234]
[1772085840967,3.60235037,87.66,87.625,0.83695234]
[1772085842887,4.48402727,87.66,87.625,0.83695234]
[1772085843063,3.60235037,87.66,87.625,0.83695234]
[1772085843270,0.8816769,87.659,87.627,0.83695234]
[1772085844585,12.28951865,87.659,87.627,0.83695234]
[1772085844781,0.8816769,87.659,87.627,0.83695234]
[1772085844981,0.8816769,87.665,87.631,0.83695234]
[1772085845187,11.4042636,87.687,87.653,0.83695234]
[1772085845372,0.8816769,87.686,87.653,0.83695234]
[1772085845572,3.60235037,87.68,87.653,0.83695234]
[1772085845788,11.40316298,87.695,87.661,0.83695234]
[1772085845995,3.60235037,87.69,87.661,0.83695234]
[1772085846371,0.8816769,87.689,87.661,0.83695234]
[1772085847174,11.40406897,87.688,87.661,0.83695234]
[1772085847788,0.8816769,87.689,87.662,0.83695234]
[1772085847986,0.8816769,87.687,87.656,0.83695234]
[1772085849788,11.40432908,87.686,87.657,0.83695234]
[1772085850393,12.28600598,87.686,87.657,0.83695234]
[1772085850577,0.8816769,87.685,87.657,0.83695234]
[1772085851695,0.8816769,87.699,87.661,0.83695234]
[1772085851884,0.8816769,87.695,87.663,0.83695234]
[1772085853211,0.8816769,87.721,87.663,0.83695234]
[1772085853381,0.8816769,87.721,87.662,39.9260797]
[1772085853382,0.8816769,87.727,87.691,0.83695234]
[1772085853583,12.28067648,87.727,87.691,0.83695234]
[1772085853782,12.28067648,87.727,87.693,0.83695234]
[1772085854001,28.49330704,87.74,87.692,11.40354878]
[1772085854002,3.60235037,87.74,87.701,0.83695234]
[1772085854222,0.1,87.76,87.721,0.83695234]
[1772085854505,0.1,87.76,87.72,3.60235037]
[1772085854506,11.39484269,87.759,87.731,0.83695234]
[1772085855295,0.1,87.76,87.731,0.83695234]
[1772085855488,0.1,87.76,87.741,0.83695234]
[1772085855808,0.1,87.78,87.751,0.83695234]
[1772085856096,0.8816769,87.779,87.741,0.83695234]
[1772085857495,12.27405312,87.778,87.742,0.83695234]
[1772085857697,0.8816769,87.777,87.742,0.83695234]
[1772085858406,0.8816769,87.759,87.731,0.83695234]
[1772085858905,0.8816769,87.769,87.731,0.83695234]
[1772085860584,0.1,87.78,87.731,0.83695234]
[1772085860585,0.8816769,87.759,87.731,0.83695234]
[1772085860805,0.8816769,87.749,87.721,0.83695234]
[1772085862394,3.60235037,87.76,87.721,0.83695234]
[1772085862791,11.39484269,87.759,87.722,0.83695234]
[1772085863117,0.8816769,87.758,87.722,0.83695234]
[1772085863906,0.8816769,87.749,87.722,0.83695234]
[1772085865993,11.39627114,87.748,87.722,0.83695234]
[1772085866501,11.39547239,87.755,87.731,0.83255579]
[1772085869796,12.28967703,87.755,87.731,0.83255579]
[1772085872617,0.89420464,87.754,87.731,0.83255579]
[1772085872911,11.39547239,87.755,87.731,0.83255579]
[1772085873115,0.89420464,87.754,87.724,0.83255579]
[1772085875900,3.60235037,87.76,87.726,0.83577298]
[1772085876318,11.39484269,87.759,87.731,0.83577298]
[1772085876910,0.83194571,87.762,87.731,0.83577298]
[1772085878521,0.83194571,87.76,87.733,0.83577298]
[1772085881010,11.39484269,87.759,87.733,0.83577298]
[1772085881206,0.83194571,87.758,87.733,0.83577298]
[1772085883015,11.392506,87.777,87.75,3.60235037]
[1772085883208,11.392506,87.777,87.751,0.83577298]
[1772085884827,0.83194571,87.776,87.735,0.83577298]
[1772085885008,0.83194571,87.739,87.7,3.60235037]
[1772085885209,0.83194571,87.729,87.69,3.59873146]
[1772085885401,3.59873146,87.76,87.676,11.40559247]
[1772085885402,0.83194571,87.709,87.676,11.40559247]
[1772085886605,0.83194571,87.709,87.68,3.59873146]
[1772085886811,202.0,112.0,87.68,3.59873146]
[1772085886812,0.83194571,87.744,87.7,3.59873146]
[1772085887016,0.83194571,87.742,87.711,0.83577298]
[1772085887321,11.39692055,87.743,87.713,0.83577298]
[1772085887527,11.39692055,87.743,87.721,0.83577298]
[1772085888723,12.22886626,87.743,87.721,0.83577298]
[1772085889215,0.83194571,87.742,87.721,0.83577298]
[1772085890543,0.83194571,87.74,87.714,0.83577298]
[1772085891732,0.83194571,87.74,87.715,0.83577298]
[1772085892536,0.83194571,87.74,87.71,9.63417232]
[1772085892537,0.83194571,87.74,87.717,0.83577298]
[1772085893046,0.83194571,87.74,87.72,10.4699453]
[1772085893247,0.83194571,87.74,87.721,0.83577298]
[1772085894523,0.83194571,87.748,87.721,0.83577298]
[1772085894721,0.83194571,87.748,87.722,0.83577298]
[1772085898145,0.82587557,87.746,87.722,0.83577298]
[1772085898342,0.82587557,87.746,87.712,0.87038665]
[1772085900342,0.82587557,87.746,87.721,0.87038665]
[1772085900542,9.63417232,87.76,87.721,0.87038665]
[1772085900740,12.22064339,87.76,87.731,0.87038665]
[1772085901048,5.36086188,87.805,87.713,39.90286501]
[1772085901049,0.82587557,87.778,87.751,0.87038665]
[1772085901744,104.1,87.789,87.72,9.63417232]
[1772085901745,0.82587557,87.785,87.761,0.87038665]
[1772085902050,0.82587557,87.778,87.751,0.87038665]
[1772085902251,0.82587557,87.776,87.742,0.87038665]
[1772085902743,0.82587557,87.769,87.742,0.87038665]
[1772085903255,0.82587557,87.769,87.731,0.87038665]
[1772085904451,0.82587557,87.767,87.732,0.87038665]
[1772085905129,11.39299885,87.774,87.741,0.87038665]
[1772085905352,0.82587557,87.773,87.741,0.87038665]
[1772085906247,0.82587557,87.803,87.761,0.87038665]
[1772085906431,0.82587557,87.803,87.748,3.69383402]
[1772085906432,0.82587557,87.803,87.78,9.63417232]
[1772085906832,0.82587557,87.819,87.791,0.87038665]
[1772085907248,9.73417232,87.83,87.791,0.87038665]
[1772085907249,0.82587557,87.828,87.791,0.87038665]
[1772085907460,0.82587557,87.809,87.773,0.87038665]
[1772085907859,0.82587557,87.799,87.773,0.87038665]
[1772085908843,10.46004789,87.79,87.763,0.87038665]
[1772085909056,0.82587557,87.789,87.763,0.87038665]
[1772085910559,0.82587557,87.81,87.771,0.87038665]
[1772085910739,0.82587557,87.809,87.771,0.87038665]
[1772085910940,0.82587557,87.808,87.781,0.87038665]
[1772085911140,0.82587557,87.808,87.773,0.87038665]
[1772085913860,0.82587557,87.806,87.773,0.87038665]
[1772085914363,0.82587557,87.806,87.775,0.87038665]
[1772085917557,0.82587557,87.824,87.791,0.87038665]
[1772085917770,0.1,87.83,87.811,0.87038665]
[1772085918064,0.82587557,87.828,87.8,9.62266624]
[1772085918238,0.1,87.83,87.801,0.87038665]
[1772085918442,0.82587557,87.855,87.821,0.87038665]
[1772085918654,12.20904441,87.849,87.821,0.87038665]
[1772085918844,0.82587557,87.848,87.812,0.87038665]
[1772085919264,0.82587557,87.839,87.812,0.87038665]
[1772085919576,0.82587557,87.837,87.81,9.62266624]
[1772085920962,0.82587557,87.829,87.791,0.87038665]
[1772085921164,39.84608027,87.838,87.776,28.48127037]
[1772085921165,0.82587557,87.819,87.784,0.87038665]
[1772085921669,0.82587557,87.817,87.784,0.87038665]
[1772085922753,0.82587557,87.809,87.784,0.87038665]
[1772085922955,0.82587557,87.809,87.776,12.26294667]
[1772085923149,0.82587557,87.809,87.776,0.87038665]
[1772085923349,0.82587557,87.809,87.758,3.69383402]
[1772085923350,0.82587557,87.799,87.769,0.87038665]
[1772085924162,9.62266624,87.8,87.77,9.62266624]
[1772085924163,0.82587557,87.797,87.77,9.62266624]
[1772085925763,11.39004054,87.796,87.77,10.49305289]
[1772085925965,0.82681118,87.808,87.772,0.83163218]
[1772085927175,0.82681118,87.808,87.781,0.83163218]
[1772085927470,11.38835426,87.809,87.781,0.83163218]
[1772085927646,0.82681118,87.808,87.781,0.83163218]
[1772085928464,11.38861366,87.807,87.781,0.83163218]
[1772085928665,12.21542484,87.807,87.781,0.83163218]
[1772085929553,0.82681118,87.806,87.781,0.83163218]
[1772085931069,0.82681118,87.806,87.783,0.83163218]
[1772085931263,0.82681118,87.812,87.783,0.83163218]
[1772085931573,11.38728701,87.818,87.783,0.83163218]
[1772085932282,3.59178737,87.83,87.791,0.83163218]
[1772085932472,0.82681118,87.833,87.801,0.83163218]
[1772085932783,0.82681118,87.831,87.801,0.83163218]
[1772085933681,3.59178737,87.83,87.801,0.83163218]
[1772085933860,0.83394865,87.829,87.801,0.83163218]
[1772085934064,11.38485334,87.837,87.801,0.83163218]
[1772085934368,0.93394865,87.85,87.82,3.59178737]
[1772085934553,0.1,87.85,87.823,0.89912197]
[1772085934750,0.1,87.85,87.83,3.59178737]
[1772085935063,0.1,87.85,87.831,0.89912197]
[1772085935764,11.37918268,87.88,87.841,0.89912197]
[1772085935954,11.37918268,87.88,87.851,0.89912197]
[1772085936152,0.83394865,87.894,87.861,0.89912197]
[1772085936352,0.83394865,87.893,87.861,0.89912197]
[1772085936769,0.83394865,87.891,87.861,0.89912197]
[1772085936976,11.37716905,87.896,87.863,0.89912197]
[1772085937268,0.83394865,87.895,87.863,0.89912197]
[1772085939368,51.32,87.899,87.871,0.89912197]
[1772085939566,0.83394865,87.906,87.871,0.89912197]
[1772085940579,11.3750519,87.912,87.881,0.89912197]
[1772085940752,0.1,87.92,87.891,0.89912197]
[1772085940952,0.1,87.92,87.901,0.89912197]
[1772085941358,0.1,87.92,87.891,0.89912197]
[1772085941359,0.83394865,87.918,87.891,0.89912197]
[1772085942172,0.1,87.92,87.891,0.89912197]
[1772085942571,11.37410571,87.919,87.891,0.89912197]
[1772085942878,0.1,87.92,87.891,0.89912197]
[1772085943376,0.1,87.92,87.875,3.69383402]
[1772085943377,0.83394865,87.919,87.881,0.89912197]
[1772085943576,0.83394865,87.889,87.854,0.89912197]
[1772085943773,0.83394865,87.879,87.845,12.28271717]
[1772085944079,9.59583369,87.86,87.831,0.89912197]
[1772085944266,9.59583369,87.86,87.832,0.89912197]
[1772085944463,0.83394865,87.869,87.832,0.89912197]
[1772085944871,0.83394865,87.869,87.833,11.38524244]
[1772085945071,0.83394865,87.869,87.834,0.89912197]
[1772085946090,0.83394865,87.859,87.826,0.89912197]
[1772085947073,0.83394865,87.857,87.827,11.38602024]
[1772085947595,0.83394865,87.857,87.827,12.28514221]
[1772085947971,0.83394865,87.857,87.827,0.89912197]
[1772085948885,0.83394865,87.839,87.805,0.89912197]
[1772085949078,12.21854301,87.838,87.805,0.89912197]
[1772085949273,0.83394865,87.837,87.805,0.89912197]
[1772085949688,9.61144254,87.84,87.807,0.89912197]
[1772085949890,0.83394865,87.846,87.811,0.89912197]
[1772085951089,12.21758617,87.846,87.813,0.89912197]
[1772085952693,0.83394865,87.857,87.821,0.89912197]
[1772085953995,0.83394865,87.857,87.823,0.89912197]
[1772085955090,11.38226188,87.856,87.823,0.89912197]
[1772085955397,0.83394865,87.849,87.813,0.89912197]
[1772085956299,0.83394865,87.849,87.815,0.8586045]
[1772085956692,0.85599595,87.855,87.821,0.8586045]
[1772085959985,9.61144254,87.87,87.831,0.8586045]
[1772085960396,10.46743849,87.87,87.831,0.8586045]
[1772085960579,0.85599595,87.869,87.831,0.8586045]
[1772085961188,0.85599595,87.869,87.84,9.61144254]
[1772085962900,0.85599595,87.898,87.861,0.8586045]
[1772085963108,0.85599595,87.903,87.87,9.61144254]
[1772085963280,0.85599595,87.899,87.86,9.61144254]
[1772085963780,11.37630543,87.902,87.85,9.61144254]
[1772085963781,0.85599595,87.889,87.85,9.61144254]
[1772085964603,0.85599595,87.889,87.851,0.8586045]
[1772085965896,0.85599595,87.887,87.851,0.8586045]
[1772085966600,0.85599595,87.887,87.86,9.61144254]
[1772085966809,12.23292364,87.898,87.871,0.8586045]
[1772085967098,0.85599595,87.897,87.87,9.61144254]
[1772085967299,0.85599595,87.889,87.852,0.8586045]
[1772085967795,0.85599595,87.889,87.85,9.61144254]
[1772085968004,0.85599595,87.879,87.85,9.61144254]
[1772085970199,0.85599595,87.879,87.828,3.69383402]
[1772085970200,0.85599595,87.859,87.824,0.8586045]
[1772085970784,0.85599595,87.849,87.813,0.8586045]
[1772085972013,0.85599595,87.849,87.82,9.61144254]
[1772085972184,0.85599595,87.858,87.822,0.8586045]
[1772085972781,0.85599595,87.856,87.822,0.8586045]
[1772085975186,0.85599595,87.856,87.823,12.24514333]
[1772085975391,0.85599595,87.856,87.824,0.8586045]
[1772085976487,104.1,87.877,87.841,0.8586045]
[1772085976488,0.85599595,87.876,87.841,0.8586045]
[1772085976701,0.85599595,87.859,87.831,0.8586045]
[1772085976889,0.85599595,87.859,87.822,0.8586045]
[1772085977885,0.85599595,87.857,87.822,0.8586045]
[1772085978214,0.85599595,87.849,87.82,9.61144254]
[1772085978446,0.85599595,87.849,87.815,0.8586045]